[Event "Early-Titled-Tuesday-Blitz-January-16-2024"]
[Site "Chess.com"]
[Date "2024.01.16"]
[Round "11"]
[White "bancsoo"]
[Black "Buzhizhebuguai"]
[Result "0-1"]
[WhiteElo "2906"]
[BlackElo "2703"]
[TimeControl "180+1"]
[EndTime "10:07:54 PST"]
[Termination "Buzhizhebuguai won by resignation"]

1. Nf3 {[%clk 0:03:00.9]} 1... Nf6 {[%clk 0:02:56.8]} 2. g3 {[%clk 0:03:00.9]}
2... b6 {[%clk 0:02:56.7]} 3. Bg2 {[%clk 0:03:01.1]} 3... Bb7 {[%clk 0:02:57.4]}
4. O-O {[%clk 0:03:02]} 4... g6 {[%clk 0:02:58.1]} 5. d4 {[%clk 0:03:02.4]} 5...
Bg7 {[%clk 0:02:57.5]} 6. c4 {[%clk 0:03:03.1]} 6... e6 {[%clk 0:02:57.7]} 7.
Nc3 {[%clk 0:03:02.2]} 7... Ne4 {[%clk 0:02:58]} 8. Nxe4 {[%clk 0:03:02.6]} 8...
Bxe4 {[%clk 0:02:57.7]} 9. Bg5 {[%clk 0:03:03.2]} 9... Qc8 {[%clk 0:02:56]} 10.
Qd2 {[%clk 0:03:02]} 10... O-O {[%clk 0:02:55.2]} 11. Bh6 {[%clk 0:03:01.8]}
11... d6 {[%clk 0:02:51.2]} 12. Qf4 {[%clk 0:03:00.9]} 12... f5 {[%clk
0:02:43.5]} 13. Qh4 {[%clk 0:02:52.9]} 13... Bf6 {[%clk 0:02:07.3]} 14. Bg5
{[%clk 0:02:29.9]} 14... Nd7 {[%clk 0:01:55.9]} 15. c5 {[%clk 0:02:12.3]} 15...
Qb7 {[%clk 0:01:31.9]} 16. cxd6 {[%clk 0:02:02.5]} 16... cxd6 {[%clk 0:01:31.7]}
17. Rac1 {[%clk 0:01:59.5]} 17... Rae8 {[%clk 0:01:16.8]} 18. Rc3 {[%clk
0:01:44.7]} 18... Re7 {[%clk 0:01:16.7]} 19. Rfc1 {[%clk 0:01:44.1]} 19... Bxg5
{[%clk 0:01:16.8]} 20. Qxg5 {[%clk 0:01:39]} 20... Nf6 {[%clk 0:01:15.4]} 21.
Nh4 {[%clk 0:01:30.6]} 21... Bxg2 {[%clk 0:01:09.1]} 22. Nxg2 {[%clk 0:01:30.2]}
22... Ne4 {[%clk 0:01:08.4]} 23. Qf4 {[%clk 0:01:21.9]} 23... Nxc3 {[%clk
0:01:07.9]} 24. Rxc3 {[%clk 0:01:22.6]} 24... e5 {[%clk 0:00:59.9]} 25. dxe5
{[%clk 0:01:16.5]} 25... dxe5 {[%clk 0:01:00.2]} 26. Qc4+ {[%clk 0:01:16.5]}
26... Rff7 {[%clk 0:00:57.4]} 27. Rd3 {[%clk 0:01:03.6]} 27... Rc7 {[%clk
0:00:50]} 28. Rd8+ {[%clk 0:00:50.1]} 28... Kg7 {[%clk 0:00:50.5]} 29. Qb4
{[%clk 0:00:48.6]} 29... Rc1+ {[%clk 0:00:50.7]} 30. Ne1 {[%clk 0:00:49.3]}
30... Qe7 {[%clk 0:00:51.2]} 0-1

[Event "Early-Titled-Tuesday-Blitz-January-16-2024"]
[Site "Chess.com"]
[Date "2024.01.16"]
[Round "11"]
[White "Balla_Tamas"]
[Black "GrotBchess"]
[Result "0-1"]
[WhiteElo "2447"]
[BlackElo "2327"]
[TimeControl "180+1"]
[EndTime "10:08:07 PST"]
[Termination "GrotBchess won by resignation"]

1. e4 {[%clk 0:03:00.9]} 1... e6 {[%clk 0:02:59.8]} 2. d4 {[%clk 0:03:00.7]}
2... d5 {[%clk 0:02:59.9]} 3. Nd2 {[%clk 0:03:01]} 3... Nf6 {[%clk 0:02:59.1]}
4. e5 {[%clk 0:03:01.4]} 4... Nfd7 {[%clk 0:02:59.4]} 5. Bd3 {[%clk 0:03:02]}
5... c5 {[%clk 0:02:59.8]} 6. c3 {[%clk 0:03:02.7]} 6... Nc6 {[%clk 0:03:00]} 7.
Ne2 {[%clk 0:03:03.1]} 7... Rb8 {[%clk 0:02:58.8]} 8. O-O {[%clk 0:02:58.9]}
8... b5 {[%clk 0:02:58.6]} 9. f4 {[%clk 0:02:56.4]} 9... g6 {[%clk 0:02:57]} 10.
g4 {[%clk 0:02:51.4]} 10... cxd4 {[%clk 0:02:47]} 11. cxd4 {[%clk 0:02:51.1]}
11... Qb6 {[%clk 0:02:47.6]} 12. Nf3 {[%clk 0:02:46]} 12... h5 {[%clk
0:02:42.8]} 13. h3 {[%clk 0:02:39.3]} 13... hxg4 {[%clk 0:02:42.3]} 14. hxg4
{[%clk 0:02:39.5]} 14... Be7 {[%clk 0:02:42.9]} 15. f5 {[%clk 0:02:38.2]} 15...
Ncxe5 {[%clk 0:02:34]} 16. fxe6 {[%clk 0:02:27.4]} 16... fxe6 {[%clk 0:02:28.6]}
17. Bf4 {[%clk 0:02:20.1]} 17... Nxf3+ {[%clk 0:02:25.8]} 18. Rxf3 {[%clk
0:02:17]} 18... e5 {[%clk 0:02:10.1]} 19. Bg3 {[%clk 0:01:37.6]} 19... e4 {[%clk
0:02:05.6]} 20. Bxb8 {[%clk 0:01:24.2]} 20... exf3 {[%clk 0:02:00.4]} 21. Nf4
{[%clk 0:01:15.4]} 21... Qxb8 {[%clk 0:01:57.1]} 22. Qxf3 {[%clk 0:01:10.3]}
22... Qd6 {[%clk 0:01:42.9]} 23. Bxg6+ {[%clk 0:01:03]} 23... Kd8 {[%clk
0:01:39.9]} 24. Rc1 {[%clk 0:00:46.4]} 24... Bg5 {[%clk 0:01:24.4]} 25. Qc3
{[%clk 0:00:30.6]} 25... Qxf4 {[%clk 0:00:59.2]} 26. Qxc8+ {[%clk 0:00:29.3]}
26... Ke7 {[%clk 0:00:59.2]} 27. Re1+ {[%clk 0:00:24.7]} 27... Qe3+ {[%clk
0:00:52.2]} 0-1

[Event "Early-Titled-Tuesday-Blitz-January-16-2024"]
[Site "Chess.com"]
[Date "2024.01.16"]
[Round "11"]
[White "kidagent"]
[Black "Rodalquilar"]
[Result "0-1"]
[WhiteElo "2310"]
[BlackElo "2750"]
[TimeControl "180+1"]
[EndTime "10:08:08 PST"]
[Termination "Rodalquilar won by resignation"]

1. c4 {[%clk 0:03:00.9]} 1... e6 {[%clk 0:02:59.7]} 2. g3 {[%clk 0:03:00.5]}
2... d5 {[%clk 0:03:00.1]} 3. Bg2 {[%clk 0:03:00.9]} 3... Nf6 {[%clk 0:03:00.5]}
4. Nf3 {[%clk 0:02:59.3]} 4... Be7 {[%clk 0:03:00.9]} 5. O-O {[%clk 0:02:57.6]}
5... O-O {[%clk 0:03:01.5]} 6. b3 {[%clk 0:02:57.1]} 6... a5 {[%clk 0:03:01.9]}
7. Bb2 {[%clk 0:02:54.8]} 7... a4 {[%clk 0:03:01.4]} 8. Qc2 {[%clk 0:02:41.2]}
8... a3 {[%clk 0:02:58.8]} 9. Bc3 {[%clk 0:02:39.3]} 9... c5 {[%clk 0:02:51.9]}
10. e3 {[%clk 0:02:35.2]} 10... Nc6 {[%clk 0:02:52]} 11. d4 {[%clk 0:02:34]}
11... cxd4 {[%clk 0:02:50.5]} 12. exd4 {[%clk 0:02:32.3]} 12... Bd7 {[%clk
0:02:40.5]} 13. Nbd2 {[%clk 0:02:26.1]} 13... Nb4 {[%clk 0:02:33.8]} 14. Qb1
{[%clk 0:02:22.2]} 14... Qb6 {[%clk 0:02:33.1]} 15. Rd1 {[%clk 0:02:10.2]} 15...
Rfc8 {[%clk 0:02:32.6]} 16. c5 {[%clk 0:02:09.3]} 16... Qa5 {[%clk 0:02:28.5]}
17. Ne1 {[%clk 0:02:05.7]} 17... b6 {[%clk 0:02:21.1]} 18. Nd3 {[%clk
0:02:00.6]} 18... bxc5 {[%clk 0:02:21.4]} 19. dxc5 {[%clk 0:01:49.7]} 19... Bxc5
{[%clk 0:02:21.7]} 20. Nxc5 {[%clk 0:01:43.4]} 20... Qxc5 {[%clk 0:02:19.9]} 21.
Rc1 {[%clk 0:01:35.2]} 21... Qb5 {[%clk 0:01:29.7]} 22. Bf1 {[%clk 0:01:30.8]}
22... Qb6 {[%clk 0:01:29.5]} 23. Bxf6 {[%clk 0:01:18.7]} 23... gxf6 {[%clk
0:01:29.5]} 24. Rxc8+ {[%clk 0:01:12.7]} 24... Rxc8 {[%clk 0:01:29.4]} 25. Qd1
{[%clk 0:01:10.9]} 25... Qd4 {[%clk 0:01:20.3]} 26. Nf3 {[%clk 0:00:55.9]} 26...
Qxd1 {[%clk 0:01:19.1]} 27. Rxd1 {[%clk 0:00:56.8]} 27... Nxa2 {[%clk 0:01:14]}
28. Ra1 {[%clk 0:00:54.5]} 28... Rc2 {[%clk 0:01:12.9]} 29. Ne1 {[%clk 0:00:53]}
29... Rb2 {[%clk 0:01:05.2]} 30. b4 {[%clk 0:00:52.7]} 30... Nxb4 {[%clk
0:00:50.6]} 31. Rxa3 {[%clk 0:00:52.3]} 31... Rb1 {[%clk 0:00:51.2]} 32. Re3
{[%clk 0:00:48.8]} 32... d4 {[%clk 0:00:49.2]} 33. Re4 {[%clk 0:00:45]} 33... e5
{[%clk 0:00:43]} 34. Kg2 {[%clk 0:00:43.3]} 34... Bc6 {[%clk 0:00:42.9]} 0-1

[Event "Early-Titled-Tuesday-Blitz-January-16-2024"]
[Site "Chess.com"]
[Date "2024.01.16"]
[Round "11"]
[White "LaPiToB"]
[Black "Kotofeyca"]
[Result "1-0"]
[WhiteElo "2330"]
[BlackElo "2394"]
[TimeControl "180+1"]
[EndTime "10:08:14 PST"]
[Termination "LaPiToB won on time"]

1. c4 {[%clk 0:03:00.9]} 1... c6 {[%clk 0:02:59.9]} 2. d4 {[%clk 0:03:00.3]}
2... d5 {[%clk 0:03:00.8]} 3. cxd5 {[%clk 0:03:00.8]} 3... cxd5 {[%clk
0:03:01.3]} 4. Bf4 {[%clk 0:03:00.7]} 4... Nf6 {[%clk 0:03:01.9]} 5. Nc3 {[%clk
0:03:00.8]} 5... Nc6 {[%clk 0:03:02.5]} 6. e3 {[%clk 0:03:00.6]} 6... a6 {[%clk
0:03:03]} 7. Be2 {[%clk 0:03:00.3]} 7... Bf5 {[%clk 0:03:02.8]} 8. g4 {[%clk
0:03:00.9]} 8... Be4 {[%clk 0:02:19.5]} 9. Bf3 {[%clk 0:02:58.8]} 9... Bxf3
{[%clk 0:02:16.1]} 10. Qxf3 {[%clk 0:02:58.3]} 10... Nb4 {[%clk 0:02:05.6]} 11.
Kf1 {[%clk 0:02:50.7]} 11... e6 {[%clk 0:02:05.1]} 12. a3 {[%clk 0:02:48.6]}
12... Nd3 {[%clk 0:01:54.3]} 13. Qe2 {[%clk 0:02:38.4]} 13... Nxf4 {[%clk
0:01:48.5]} 14. exf4 {[%clk 0:02:39.3]} 14... Bd6 {[%clk 0:01:33.2]} 15. f5
{[%clk 0:02:34.7]} 15... O-O {[%clk 0:01:29.9]} 16. g5 {[%clk 0:02:29.2]} 16...
Ne4 {[%clk 0:01:21.8]} 17. Nxe4 {[%clk 0:02:24.6]} 17... dxe4 {[%clk 0:01:22.7]}
18. fxe6 {[%clk 0:02:24.1]} 18... Qxg5 {[%clk 0:01:13.3]} 19. Qxe4 {[%clk
0:02:18.2]} 19... Rae8 {[%clk 0:00:46.9]} 20. Nf3 {[%clk 0:02:07.3]} 20... Qh5
{[%clk 0:00:39.1]} 21. Rg1 {[%clk 0:01:56.2]} 21... Qh3+ {[%clk 0:00:20.4]} 22.
Rg2 {[%clk 0:01:51.2]} 22... fxe6 {[%clk 0:00:17.1]} 23. Ng5 {[%clk 0:01:47.2]}
23... Qh5 {[%clk 0:00:11.5]} 24. Nxe6 {[%clk 0:01:38.5]} 24... Rf7 {[%clk
0:00:09]} 25. d5 {[%clk 0:01:36.5]} 25... Bc5 {[%clk 0:00:06.8]} 26. Kg1 {[%clk
0:01:32.2]} 26... Rfe7 {[%clk 0:00:04.8]} 27. Re1 {[%clk 0:01:29.8]} 27... Bd6
{[%clk 0:00:04.8]} 28. Qg4 {[%clk 0:01:25.7]} 28... Qf7 {[%clk 0:00:03.8]} 29.
f4 {[%clk 0:01:21.6]} 29... g6 {[%clk 0:00:03.8]} 30. f5 {[%clk 0:01:20.8]}
30... Kh8 {[%clk 0:00:03.5]} 31. fxg6 {[%clk 0:01:20.4]} 31... hxg6 {[%clk
0:00:03.9]} 32. Qxg6 {[%clk 0:01:16.7]} 32... Bc5+ {[%clk 0:00:04]} 33. Kh1
{[%clk 0:01:14.8]} 33... Qxg6 {[%clk 0:00:02.3]} 34. Rxg6 {[%clk 0:01:14.5]} 1-0

[Event "Early-Titled-Tuesday-Blitz-January-16-2024"]
[Site "Chess.com"]
[Date "2024.01.16"]
[Round "11"]
[White "KononenkoD"]
[Black "MusicCityMaster"]
[Result "1-0"]
[WhiteElo "2546"]
[BlackElo "2423"]
[TimeControl "180+1"]
[EndTime "10:08:15 PST"]
[Termination "KononenkoD won on time"]

1. e4 {[%clk 0:03:00.3]} 1... e6 {[%clk 0:02:59.9]} 2. d4 {[%clk 0:02:59.3]}
2... d5 {[%clk 0:03:00.6]} 3. Nc3 {[%clk 0:02:59.3]} 3... Bb4 {[%clk 0:03:00.6]}
4. e5 {[%clk 0:02:57.7]} 4... c5 {[%clk 0:03:01.1]} 5. a3 {[%clk 0:02:58]} 5...
Bxc3+ {[%clk 0:03:01.8]} 6. bxc3 {[%clk 0:02:58.7]} 6... Ne7 {[%clk 0:03:02]} 7.
a4 {[%clk 0:02:54.5]} 7... b6 {[%clk 0:02:59.2]} 8. Qg4 {[%clk 0:02:48.7]} 8...
cxd4 {[%clk 0:02:50.9]} 9. cxd4 {[%clk 0:02:48.3]} 9... Qc7 {[%clk 0:02:50.8]}
10. Bd2 {[%clk 0:02:40.9]} 10... Nbc6 {[%clk 0:02:46.2]} 11. Nf3 {[%clk
0:02:33.8]} 11... Ng6 {[%clk 0:02:26.5]} 12. h4 {[%clk 0:02:22.4]} 12... h5
{[%clk 0:02:25.9]} 13. Qg5 {[%clk 0:02:20.9]} 13... Bb7 {[%clk 0:02:12.4]} 14.
Bd3 {[%clk 0:02:20.5]} 14... Nce7 {[%clk 0:02:12]} 15. O-O {[%clk 0:02:17.7]}
15... O-O-O {[%clk 0:02:08.9]} 16. a5 {[%clk 0:02:16.5]} 16... Kb8 {[%clk
0:01:47]} 17. axb6 {[%clk 0:02:15]} 17... axb6 {[%clk 0:01:46.7]} 18. Rfb1
{[%clk 0:02:15.2]} 18... Rc8 {[%clk 0:01:10.1]} 19. Bb4 {[%clk 0:02:11.9]} 19...
Rhd8 {[%clk 0:01:07.6]} 20. Qxh5 {[%clk 0:01:55.8]} 20... Qd7 {[%clk 0:00:45.9]}
21. Bd6+ {[%clk 0:01:53.1]} 21... Rc7 {[%clk 0:00:45.4]} 22. Rxb6 {[%clk
0:01:51.8]} 22... Nc8 {[%clk 0:00:44.7]} 23. Bxc7+ {[%clk 0:01:47]} 23... Qxc7
{[%clk 0:00:44.6]} 24. Rb3 {[%clk 0:01:46.3]} 24... Nf4 {[%clk 0:00:40.1]} 25.
Qg5 {[%clk 0:01:44.5]} 25... Nxd3 {[%clk 0:00:39]} 26. cxd3 {[%clk 0:01:44.9]}
26... Rd7 {[%clk 0:00:28.6]} 27. Qxg7 {[%clk 0:01:39.9]} 27... f5 {[%clk
0:00:28.5]} 28. Qf8 {[%clk 0:01:37.3]} 28... Qc6 {[%clk 0:00:17.5]} 29. Rab1
{[%clk 0:01:34.5]} 29... Ka7 {[%clk 0:00:15.2]} 30. Qa3+ {[%clk 0:01:32.8]}
30... Kb8 {[%clk 0:00:15.2]} 31. Qb2 {[%clk 0:01:30.3]} 31... Ne7 {[%clk
0:00:14.6]} 32. Ng5 {[%clk 0:01:29.9]} 32... Ng6 {[%clk 0:00:13.3]} 33. Nxe6
{[%clk 0:01:28.5]} 33... Nxh4 {[%clk 0:00:07]} 34. Nc5 {[%clk 0:01:26.8]} 34...
Rg7 {[%clk 0:00:02.5]} 35. Rxb7+ {[%clk 0:01:25.8]} 35... Rxb7 {[%clk
0:00:01.8]} 36. Qxb7+ {[%clk 0:01:26]} 36... Qxb7 {[%clk 0:00:02.5]} 37. Rxb7+
{[%clk 0:01:26.4]} 1-0

[Event "Early-Titled-Tuesday-Blitz-January-16-2024"]
[Site "Chess.com"]
[Date "2024.01.16"]
[Round "11"]
[White "Bauman_Guy"]
[Black "Mops_2004"]
[Result "1-0"]
[WhiteElo "2904"]
[BlackElo "2671"]
[TimeControl "180+1"]
[EndTime "10:08:17 PST"]
[Termination "Bauman_Guy won by resignation"]

1. e4 {[%clk 0:03:00.9]} 1... c6 {[%clk 0:02:59.4]} 2. d4 {[%clk 0:03:00.5]}
2... d5 {[%clk 0:02:59.7]} 3. e5 {[%clk 0:03:01.4]} 3... Bf5 {[%clk 0:02:59.4]}
4. h4 {[%clk 0:03:01]} 4... h5 {[%clk 0:02:58.8]} 5. Bd3 {[%clk 0:03:01.1]} 5...
Bxd3 {[%clk 0:02:58.7]} 6. Qxd3 {[%clk 0:03:02]} 6... Qa5+ {[%clk 0:02:58.9]} 7.
Nd2 {[%clk 0:03:01.1]} 7... e6 {[%clk 0:02:59]} 8. Nf3 {[%clk 0:03:01.1]} 8...
Nh6 {[%clk 0:02:59.2]} 9. O-O {[%clk 0:03:00.6]} 9... Nf5 {[%clk 0:02:59.5]} 10.
a4 {[%clk 0:03:01.2]} 10... Qa6 {[%clk 0:02:30.9]} 11. c4 {[%clk 0:02:59.9]}
11... Be7 {[%clk 0:02:22.3]} 12. Rd1 {[%clk 0:02:55.4]} 12... O-O {[%clk
0:02:17.3]} 13. b3 {[%clk 0:02:53]} 13... c5 {[%clk 0:02:09.8]} 14. Qb1 {[%clk
0:02:51.5]} 14... Nxd4 {[%clk 0:01:43.9]} 15. Nxd4 {[%clk 0:02:50]} 15... cxd4
{[%clk 0:01:44.8]} 16. cxd5 {[%clk 0:02:50.4]} 16... exd5 {[%clk 0:01:45.1]} 17.
Nf3 {[%clk 0:02:46.9]} 17... Qg6 {[%clk 0:01:34.4]} 18. Qxg6 {[%clk 0:02:42.1]}
18... fxg6 {[%clk 0:01:34.6]} 19. Rxd4 {[%clk 0:02:42.8]} 19... Rd8 {[%clk
0:01:30.2]} 20. Bf4 {[%clk 0:02:36]} 20... Nc6 {[%clk 0:01:29.3]} 21. Rd2 {[%clk
0:02:36.1]} 21... d4 {[%clk 0:01:07.8]} 22. Rad1 {[%clk 0:02:35.1]} 22... Bb4
{[%clk 0:01:05.2]} 23. Rd3 {[%clk 0:02:35.1]} 23... Bc3 {[%clk 0:01:05.6]} 24.
Ng5 {[%clk 0:02:29.7]} 24... Nb4 {[%clk 0:01:04.8]} 25. Rg3 {[%clk 0:02:26.7]}
25... d3 {[%clk 0:01:01.2]} 26. Ne6 {[%clk 0:02:22.2]} 26... Rdc8 {[%clk
0:00:53.7]} 27. Be3 {[%clk 0:01:56.2]} 27... Bxe5 {[%clk 0:00:42.3]} 28. f4
{[%clk 0:01:56.1]} 28... Bf6 {[%clk 0:00:40.7]} 29. Rxg6 {[%clk 0:01:56]} 29...
Rc3 {[%clk 0:00:20.9]} 30. f5 {[%clk 0:01:54.2]} 30... Kf7 {[%clk 0:00:13.2]}
31. Nxg7 {[%clk 0:01:52.9]} 31... Rg8 {[%clk 0:00:08.1]} 32. Nxh5 {[%clk
0:01:52.7]} 32... Be5 {[%clk 0:00:04]} 33. Re6 {[%clk 0:01:31.8]} 33... Nc6
{[%clk 0:00:03.8]} 34. b4 {[%clk 0:01:28.5]} 34... Bc7 {[%clk 0:00:02.2]} 35.
Nf6 {[%clk 0:01:25.4]} 35... Rg3 {[%clk 0:00:01.8]} 36. Nd5 {[%clk 0:01:25.2]}
36... Bb6 {[%clk 0:00:01.2]} 37. Bxb6 {[%clk 0:01:24]} 1-0

[Event "Early-Titled-Tuesday-Blitz-January-16-2024"]
[Site "Chess.com"]
[Date "2024.01.16"]
[Round "11"]
[White "Cheer_Down"]
[Black "AlexandraSamaganova"]
[Result "0-1"]
[WhiteElo "2482"]
[BlackElo "2321"]
[TimeControl "180+1"]
[EndTime "10:08:20 PST"]
[Termination "AlexandraSamaganova won by checkmate"]

1. d4 {[%clk 0:03:00.9]} 1... Nf6 {[%clk 0:02:57.3]} 2. Nf3 {[%clk 0:03:00.1]}
2... e6 {[%clk 0:02:57.5]} 3. Bf4 {[%clk 0:02:59]} 3... b6 {[%clk 0:02:57.4]} 4.
e3 {[%clk 0:02:57.8]} 4... Bb7 {[%clk 0:02:57.6]} 5. Be2 {[%clk 0:02:57.6]} 5...
d5 {[%clk 0:02:55.6]} 6. Nbd2 {[%clk 0:02:54.8]} 6... Bd6 {[%clk 0:02:55.4]} 7.
Bg3 {[%clk 0:02:54.5]} 7... c5 {[%clk 0:02:55]} 8. c3 {[%clk 0:02:50.8]} 8...
Qc7 {[%clk 0:02:53.9]} 9. Ne5 {[%clk 0:02:45.7]} 9... Nbd7 {[%clk 0:02:49.8]}
10. f4 {[%clk 0:02:45.7]} 10... Ne4 {[%clk 0:02:38.8]} 11. Nxe4 {[%clk
0:02:42.8]} 11... dxe4 {[%clk 0:02:39.7]} 12. Bb5 {[%clk 0:02:36.9]} 12... Bxe5
{[%clk 0:02:34.8]} 13. fxe5 {[%clk 0:02:33]} 13... O-O {[%clk 0:02:30]} 14. O-O
{[%clk 0:02:29.9]} 14... Rfd8 {[%clk 0:02:02.5]} 15. Qh5 {[%clk 0:02:26.1]}
15... Nf8 {[%clk 0:01:59.9]} 16. Bh4 {[%clk 0:02:24.1]} 16... Rdc8 {[%clk
0:01:49.3]} 17. Rf4 {[%clk 0:02:15.2]} 17... Ng6 {[%clk 0:01:47.7]} 18. Raf1
{[%clk 0:01:58.4]} 18... Rf8 {[%clk 0:01:32.1]} 19. Rg4 {[%clk 0:01:52.1]} 19...
cxd4 {[%clk 0:01:18.8]} 20. cxd4 {[%clk 0:01:51.4]} 20... Qc2 {[%clk 0:01:01.2]}
21. Bg5 {[%clk 0:01:41.7]} 21... a6 {[%clk 0:00:50.2]} 22. Rf2 {[%clk
0:01:30.8]} 22... Qd1+ {[%clk 0:00:45.9]} 23. Bf1 {[%clk 0:01:30.8]} 23... Rac8
{[%clk 0:00:39.3]} 24. h4 {[%clk 0:01:27.4]} 24... Rc1 {[%clk 0:00:38.1]} 25.
Bf6 {[%clk 0:01:21]} 25... Kh8 {[%clk 0:00:20]} 26. Qh6 {[%clk 0:01:14.9]} 26...
Rg8 {[%clk 0:00:20]} 27. h5 {[%clk 0:01:11.6]} 27... Qxg4 {[%clk 0:00:19]} 28.
hxg6 {[%clk 0:01:04.2]} 28... Qxg6 {[%clk 0:00:17.4]} 29. Qh4 {[%clk 0:01:03.4]}
29... gxf6 {[%clk 0:00:16]} 30. exf6 {[%clk 0:01:02.4]} 30... a5 {[%clk
0:00:11.2]} 31. Kh2 {[%clk 0:01:02.2]} 31... Rxf1 {[%clk 0:00:09.2]} 32. Rxf1
{[%clk 0:01:00.4]} 32... Qxg2# {[%clk 0:00:09.1]} 0-1

[Event "Early-Titled-Tuesday-Blitz-January-16-2024"]
[Site "Chess.com"]
[Date "2024.01.16"]
[Round "11"]
[White "ChessBliss09"]
[Black "bazar-wokzal"]
[Result "0-1"]
[WhiteElo "2113"]
[BlackElo "2559"]
[TimeControl "180+1"]
[EndTime "10:08:20 PST"]
[Termination "bazar-wokzal won by checkmate"]

1. Nf3 {[%clk 0:03:00.9]} 1... g5 {[%clk 0:02:57]} 2. Nxg5 {[%clk 0:02:58.8]}
2... e5 {[%clk 0:02:46.6]} 3. Nf3 {[%clk 0:02:55.2]} 3... e4 {[%clk 0:02:46.5]}
4. Nd4 {[%clk 0:02:40.3]} 4... c5 {[%clk 0:02:46.3]} 5. Nb3 {[%clk 0:02:39.9]}
5... d5 {[%clk 0:02:46.6]} 6. e3 {[%clk 0:02:37.7]} 6... Nc6 {[%clk 0:02:37.7]}
7. d3 {[%clk 0:02:33.6]} 7... exd3 {[%clk 0:02:25]} 8. cxd3 {[%clk 0:02:34.5]}
8... Nf6 {[%clk 0:02:25]} 9. d4 {[%clk 0:02:28.9]} 9... c4 {[%clk 0:02:23.1]}
10. N3d2 {[%clk 0:02:29.1]} 10... Rg8 {[%clk 0:02:23.1]} 11. Nc3 {[%clk
0:02:24.1]} 11... Bg4 {[%clk 0:02:22.7]} 12. f3 {[%clk 0:02:23.6]} 12... Be6
{[%clk 0:02:22.7]} 13. g3 {[%clk 0:01:54]} 13... a6 {[%clk 0:02:17.6]} 14. Bg2
{[%clk 0:01:53.8]} 14... b5 {[%clk 0:02:17.3]} 15. a3 {[%clk 0:01:53.7]} 15...
h5 {[%clk 0:02:14.8]} 16. Kf2 {[%clk 0:01:49.8]} 16... Qb6 {[%clk 0:02:11.1]}
17. h3 {[%clk 0:01:14.1]} 17... O-O-O {[%clk 0:02:06.7]} 18. a4 {[%clk
0:01:06.5]} 18... b4 {[%clk 0:02:06.4]} 19. Ne2 {[%clk 0:01:06.8]} 19... Bd6
{[%clk 0:02:03.5]} 20. h4 {[%clk 0:00:52.8]} 20... Rg7 {[%clk 0:02:01.1]} 21.
Bh3 {[%clk 0:00:52.5]} 21... Rdg8 {[%clk 0:01:58.5]} 22. Bxe6+ {[%clk
0:00:51.8]} 22... fxe6 {[%clk 0:01:58.6]} 23. Rg1 {[%clk 0:00:43.3]} 23... Qc7
{[%clk 0:01:58.2]} 24. Nf1 {[%clk 0:00:37.8]} 24... Qf7 {[%clk 0:01:51.7]} 25.
Qc2 {[%clk 0:00:18.9]} 25... Ne4+ {[%clk 0:01:48.5]} 26. Ke1 {[%clk 0:00:14.2]}
26... Qxf3 {[%clk 0:01:46.7]} 27. Nh2 {[%clk 0:00:12.2]} 27... Qf2+ {[%clk
0:01:45.9]} 28. Kd1 {[%clk 0:00:11.2]} 28... Qxh2 {[%clk 0:01:45.8]} 29. Rf1
{[%clk 0:00:08.9]} 29... b3 {[%clk 0:01:40.3]} 30. Qb1 {[%clk 0:00:04.8]} 30...
Qxe2+ {[%clk 0:01:25]} 31. Kxe2 {[%clk 0:00:04.3]} 31... Nxg3+ {[%clk
0:01:24.8]} 32. Ke1 {[%clk 0:00:04]} 32... Nxf1 {[%clk 0:01:25.1]} 33. Kxf1
{[%clk 0:00:04.9]} 33... Rg1+ {[%clk 0:01:24.2]} 34. Kf2 {[%clk 0:00:05]} 34...
R8g2+ {[%clk 0:01:23.9]} 35. Kf3 {[%clk 0:00:05.3]} 35... Rg3+ {[%clk
0:01:23.9]} 36. Kf2 {[%clk 0:00:05.2]} 36... Nb4 {[%clk 0:01:22.2]} 37. Qh7
{[%clk 0:00:04.3]} 37... Nd3+ {[%clk 0:01:21.6]} 38. Ke2 {[%clk 0:00:04.6]}
38... R3g2+ {[%clk 0:01:19.3]} 39. Kf3 {[%clk 0:00:04.6]} 39... Rf2# {[%clk
0:01:19.7]} 0-1

[Event "Early-Titled-Tuesday-Blitz-January-16-2024"]
[Site "Chess.com"]
[Date "2024.01.16"]
[Round "11"]
[White "Leebit02"]
[Black "Alexei_Kornev"]
[Result "0-1"]
[WhiteElo "2572"]
[BlackElo "2713"]
[TimeControl "180+1"]
[EndTime "10:08:22 PST"]
[Termination "Alexei_Kornev won on time"]

1. d4 {[%clk 0:02:58.8]} 1... Nf6 {[%clk 0:02:59.6]} 2. c4 {[%clk 0:02:57.8]}
2... g6 {[%clk 0:02:58.5]} 3. h4 {[%clk 0:02:54.3]} 3... c5 {[%clk 0:02:57.7]}
4. d5 {[%clk 0:02:53.2]} 4... e6 {[%clk 0:02:57.6]} 5. Nc3 {[%clk 0:02:52.2]}
5... exd5 {[%clk 0:02:57.7]} 6. cxd5 {[%clk 0:02:52.8]} 6... d6 {[%clk
0:02:57.5]} 7. e3 {[%clk 0:02:51.2]} 7... Bg7 {[%clk 0:02:57.4]} 8. Be2 {[%clk
0:02:50]} 8... O-O {[%clk 0:02:58.3]} 9. h5 {[%clk 0:02:48.8]} 9... Re8 {[%clk
0:02:58.6]} 10. Nh3 {[%clk 0:02:22.1]} 10... Na6 {[%clk 0:02:54.1]} 11. Nf4
{[%clk 0:02:14.7]} 11... Nc7 {[%clk 0:02:51.3]} 12. a4 {[%clk 0:02:09]} 12...
Bf5 {[%clk 0:02:47.8]} 13. g4 {[%clk 0:02:02.7]} 13... Bd7 {[%clk 0:02:44.4]}
14. Bf3 {[%clk 0:01:45.4]} 14... g5 {[%clk 0:02:41]} 15. h6 {[%clk 0:01:39]}
15... gxf4 {[%clk 0:02:16.6]} 16. hxg7 {[%clk 0:01:38.9]} 16... fxe3 {[%clk
0:01:45.7]} 17. Bxe3 {[%clk 0:01:39.1]} 17... Re5 {[%clk 0:01:45.4]} 18. Qd3
{[%clk 0:01:34.8]} 18... Qe7 {[%clk 0:01:42.5]} 19. g5 {[%clk 0:01:26.3]} 19...
Bf5 {[%clk 0:01:39.1]} 20. gxf6 {[%clk 0:01:19.7]} 20... Qxf6 {[%clk 0:01:39.1]}
21. Qd2 {[%clk 0:01:13.9]} 21... Rae8 {[%clk 0:01:39.6]} 22. O-O-O {[%clk
0:01:06]} 22... Bg6 {[%clk 0:01:39.4]} 23. Bg4 {[%clk 0:01:01.1]} 23... b6
{[%clk 0:01:19.5]} 24. Bf4 {[%clk 0:00:51.1]} 24... Re4 {[%clk 0:01:15.3]} 25.
Bg5 {[%clk 0:00:34.6]} 25... Qe5 {[%clk 0:01:14.8]} 26. Rhe1 {[%clk 0:00:27.1]}
26... Rxe1 {[%clk 0:01:13.5]} 27. Rxe1 {[%clk 0:00:24.8]} 27... Qxe1+ {[%clk
0:01:14.4]} 28. Qxe1 {[%clk 0:00:25.4]} 28... Rxe1+ {[%clk 0:01:14.3]} 29. Kd2
{[%clk 0:00:26]} 29... Rg1 {[%clk 0:01:12.5]} 30. f3 {[%clk 0:00:26]} 30... h5
{[%clk 0:01:12]} 31. Ne2 {[%clk 0:00:14.4]} 31... Rg2 {[%clk 0:01:09.1]} 32. Bd8
{[%clk 0:00:04.3]} 32... hxg4 {[%clk 0:01:08.7]} 33. fxg4 {[%clk 0:00:04]} 33...
Nxd5 {[%clk 0:01:08.1]} 0-1